[Event "Early-Titled-Tuesday-Blitz-January-23-2024"]
[Site "Chess.com"]
[Date "2024.01.23"]
[Round "11"]
[White "Barmen_EV"]
[Black "NastyaHn"]
[Result "0-1"]
[WhiteElo "2471"]
[BlackElo "2368"]
[TimeControl "180+1"]
[EndTime "10:07:25 PST"]
[Termination "NastyaHn won by checkmate"]

1. e4 {[%clk 0:03:00.9]} 1... c5 {[%clk 0:02:59.4]} 2. c3 {[%clk 0:03:01.3]}
2... Nf6 {[%clk 0:02:58.8]} 3. e5 {[%clk 0:03:01.7]} 3... Nd5 {[%clk 0:02:59.2]}
4. d4 {[%clk 0:03:02.6]} 4... cxd4 {[%clk 0:02:59.5]} 5. Nf3 {[%clk 0:03:02.1]}
5... Nc6 {[%clk 0:02:59.7]} 6. cxd4 {[%clk 0:03:02.3]} 6... d6 {[%clk
0:03:00.1]} 7. Bc4 {[%clk 0:03:02.9]} 7... dxe5 {[%clk 0:03:00.5]} 8. dxe5
{[%clk 0:03:02.7]} 8... Ndb4 {[%clk 0:03:00.6]} 9. O-O {[%clk 0:03:01.4]} 9...
Qxd1 {[%clk 0:02:56.2]} 10. Rxd1 {[%clk 0:03:02.3]} 10... Nc2 {[%clk 0:02:56.4]}
11. Na3 {[%clk 0:03:01.6]} 11... Nxa3 {[%clk 0:02:44.5]} 12. bxa3 {[%clk
0:03:01.7]} 12... Bg4 {[%clk 0:02:44.7]} 13. e6 {[%clk 0:02:53.6]} 13... fxe6
{[%clk 0:02:41.7]} 14. Bf4 {[%clk 0:02:45.7]} 14... e5 {[%clk 0:02:38.9]} 15.
Bg3 {[%clk 0:02:24.4]} 15... Bxf3 {[%clk 0:02:24.4]} 16. gxf3 {[%clk 0:02:24.3]}
16... g6 {[%clk 0:02:24.2]} 17. Be6 {[%clk 0:02:22]} 17... Bg7 {[%clk
0:02:24.1]} 18. Rd7 {[%clk 0:02:20.2]} 18... Nd4 {[%clk 0:02:19.3]} 19. Bh3
{[%clk 0:02:20.2]} 19... Nxf3+ {[%clk 0:02:14.7]} 20. Kg2 {[%clk 0:02:20.2]}
20... Ng5 {[%clk 0:02:14.6]} 21. Rxb7 {[%clk 0:02:19.2]} 21... Nxh3 {[%clk
0:02:14.7]} 22. Kxh3 {[%clk 0:02:19.1]} 22... Kf7 {[%clk 0:02:13.6]} 23. Rc1
{[%clk 0:01:55.1]} 23... Rhb8 {[%clk 0:02:10.2]} 24. Rcc7 {[%clk 0:01:54.8]}
24... Rxb7 {[%clk 0:02:10.3]} 25. Rxb7 {[%clk 0:01:55.7]} 25... Bf6 {[%clk
0:02:05.9]} 26. a4 {[%clk 0:01:51.9]} 26... a6 {[%clk 0:01:57.3]} 27. Kg4 {[%clk
0:01:49.7]} 27... Rc8 {[%clk 0:01:55.8]} 28. Rb4 {[%clk 0:01:38.3]} 28... Rc2
{[%clk 0:01:53]} 29. a3 {[%clk 0:01:36.9]} 29... Rc3 {[%clk 0:01:53.1]} 30. f3
{[%clk 0:01:31.9]} 30... Rxa3 {[%clk 0:01:52.3]} 31. Be1 {[%clk 0:01:32]} 31...
h5+ {[%clk 0:01:48.6]} 32. Kg3 {[%clk 0:01:28.1]} 32... g5 {[%clk 0:01:45.4]}
33. Rc4 {[%clk 0:01:25.7]} 33... g4 {[%clk 0:01:43]} 34. Bb4 {[%clk 0:01:09.9]}
34... Rxa4 {[%clk 0:01:31]} 35. Re4 {[%clk 0:01:07.8]} 35... gxf3 {[%clk
0:01:21.4]} 36. Kxf3 {[%clk 0:01:08]} 36... Ke6 {[%clk 0:01:15.6]} 37. Bc5
{[%clk 0:01:05.1]} 37... Rxe4 {[%clk 0:01:06.9]} 38. Kxe4 {[%clk 0:01:05.4]}
38... Bg5 {[%clk 0:01:05.2]} 39. Bb4 {[%clk 0:01:03.3]} 39... Bf4 {[%clk
0:01:04.1]} 40. h3 {[%clk 0:01:03.5]} 40... Kd7 {[%clk 0:00:58.2]} 41. Kf5
{[%clk 0:01:03.3]} 41... Bg3 {[%clk 0:00:47.9]} 42. Kg5 {[%clk 0:00:58.5]} 42...
h4 {[%clk 0:00:47.3]} 43. Kf5 {[%clk 0:00:59.4]} 43... Kc6 {[%clk 0:00:45.1]}
44. Bxe7 {[%clk 0:00:59.1]} 44... Kb5 {[%clk 0:00:44.7]} 45. Ke4 {[%clk
0:00:57]} 45... Kc4 {[%clk 0:00:44.1]} 46. Bf8 {[%clk 0:00:50]} 46... a5 {[%clk
0:00:43.4]} 47. Be7 {[%clk 0:00:49.8]} 47... a4 {[%clk 0:00:43.4]} 48. Bf8
{[%clk 0:00:49.7]} 48... Kb3 {[%clk 0:00:41.4]} 49. Kd3 {[%clk 0:00:49.9]} 49...
a3 {[%clk 0:00:41.3]} 50. Bxa3 {[%clk 0:00:47.5]} 50... Kxa3 {[%clk 0:00:41.4]}
51. Ke4 {[%clk 0:00:48.4]} 51... Kb4 {[%clk 0:00:40.9]} 52. Kf3 {[%clk
0:00:49.3]} 52... Kc4 {[%clk 0:00:40.9]} 53. Kg4 {[%clk 0:00:50.2]} 53... e4
{[%clk 0:00:40.9]} 54. Kf5 {[%clk 0:00:49.9]} 54... e3 {[%clk 0:00:41.3]} 55.
Ke4 {[%clk 0:00:50.8]} 55... e2 {[%clk 0:00:41.7]} 56. Kf3 {[%clk 0:00:51.7]}
56... e1=Q {[%clk 0:00:41.7]} 57. Kg4 {[%clk 0:00:52.6]} 57... Qe4+ {[%clk
0:00:41.3]} 58. Kh5 {[%clk 0:00:53.5]} 58... Qf5+ {[%clk 0:00:40.9]} 59. Kh6
{[%clk 0:00:53.9]} 59... Qxh3 {[%clk 0:00:38.8]} 60. Kg7 {[%clk 0:00:54.8]}
60... Qg4+ {[%clk 0:00:37.8]} 61. Kf7 {[%clk 0:00:55.7]} 61... h3 {[%clk
0:00:37.4]} 62. Ke7 {[%clk 0:00:56.6]} 62... h2 {[%clk 0:00:37.9]} 63. Kd8
{[%clk 0:00:57.2]} 63... h1=Q {[%clk 0:00:38.2]} 64. Ke7 {[%clk 0:00:56.9]}
64... Qb7+ {[%clk 0:00:37.5]} 65. Kf8 {[%clk 0:00:57.8]} 65... Qgc8# {[%clk
0:00:36]} 0-1

[Event "Early-Titled-Tuesday-Blitz-January-23-2024"]
[Site "Chess.com"]
[Date "2024.01.23"]
[Round "11"]
[White "Nellichka"]
[Black "Arlo2024"]
[Result "0-1"]
[WhiteElo "1971"]
[BlackElo "2304"]
[TimeControl "180+1"]
[EndTime "10:07:26 PST"]
[Termination "Arlo2024 won by resignation"]

1. d4 {[%clk 0:03:00.9]} 1... Nf6 {[%clk 0:02:59.4]} 2. c4 {[%clk 0:02:59.9]}
2... c5 {[%clk 0:02:59.6]} 3. d5 {[%clk 0:02:59]} 3... b5 {[%clk 0:03:00.2]} 4.
a4 {[%clk 0:02:58.2]} 4... b4 {[%clk 0:03:00.3]} 5. f4 {[%clk 0:02:57.4]} 5...
g6 {[%clk 0:02:59.4]} 6. Nd2 {[%clk 0:02:52.4]} 6... Bg7 {[%clk 0:02:58.1]} 7.
e4 {[%clk 0:02:50.5]} 7... d6 {[%clk 0:02:58.6]} 8. Ngf3 {[%clk 0:02:49.5]} 8...
O-O {[%clk 0:02:58.1]} 9. Be2 {[%clk 0:02:41.4]} 9... e5 {[%clk 0:02:56.5]} 10.
fxe5 {[%clk 0:02:32.9]} 10... Ng4 {[%clk 0:02:56.4]} 11. Nf1 {[%clk 0:02:21.9]}
11... Nd7 {[%clk 0:02:47]} 12. Bg5 {[%clk 0:02:01.5]} 12... Qe8 {[%clk
0:02:42.1]} 13. exd6 {[%clk 0:01:39.5]} 13... Qxe4 {[%clk 0:02:16.5]} 14. Ng3
{[%clk 0:01:32.9]} 14... Qe8 {[%clk 0:01:53.5]} 15. O-O {[%clk 0:01:31.8]} 15...
f6 {[%clk 0:01:46.6]} 16. Bf4 {[%clk 0:01:26.3]} 16... Ne3 {[%clk 0:01:37.1]}
17. Bxe3 {[%clk 0:01:19.7]} 17... Qxe3+ {[%clk 0:01:38]} 18. Kh1 {[%clk
0:01:19.8]} 18... f5 {[%clk 0:01:29]} 19. Qc2 {[%clk 0:01:14.1]} 19... Qf4
{[%clk 0:01:22.8]} 20. Rae1 {[%clk 0:01:02.1]} 20... Qxd6 {[%clk 0:01:22.5]} 21.
Ng5 {[%clk 0:00:59.5]} 21... Ne5 {[%clk 0:01:18.2]} 22. Bf3 {[%clk 0:00:54.6]}
22... Bd7 {[%clk 0:01:17.3]} 23. Ne6 {[%clk 0:00:51.6]} 23... Nxf3 {[%clk
0:01:05.6]} 24. Rxf3 {[%clk 0:00:49.6]} 24... Bxe6 {[%clk 0:01:01]} 25. Rxe6
{[%clk 0:00:48.6]} 25... Qd7 {[%clk 0:00:59.6]} 26. Ne2 {[%clk 0:00:30.3]} 26...
Bh6 {[%clk 0:00:49.7]} 27. Qd3 {[%clk 0:00:26.3]} 27... Rae8 {[%clk 0:00:48.6]}
28. Rfe3 {[%clk 0:00:21.6]} 28... Bxe3 {[%clk 0:00:47.4]} 29. Qxe3 {[%clk
0:00:21.1]} 29... Rxe6 {[%clk 0:00:46.8]} 30. Qxe6+ {[%clk 0:00:19.6]} 30...
Qxe6 {[%clk 0:00:45.8]} 31. dxe6 {[%clk 0:00:19.1]} 31... Rd8 {[%clk 0:00:42.2]}
32. h4 {[%clk 0:00:16.8]} 32... Re8 {[%clk 0:00:42.1]} 33. Nf4 {[%clk
0:00:16.4]} 33... Kg7 {[%clk 0:00:41.1]} 34. Kg1 {[%clk 0:00:15]} 34... Kf6
{[%clk 0:00:41.1]} 35. Kf2 {[%clk 0:00:14.4]} 35... Rxe6 {[%clk 0:00:37.5]} 36.
Nxe6 {[%clk 0:00:13.4]} 36... Kxe6 {[%clk 0:00:38.4]} 37. Kf3 {[%clk 0:00:13.4]}
37... Ke5 {[%clk 0:00:32.9]} 38. g3 {[%clk 0:00:13]} 38... h6 {[%clk 0:00:32.9]}
39. Ke3 {[%clk 0:00:12.6]} 39... g5 {[%clk 0:00:32.4]} 40. hxg5 {[%clk
0:00:09.7]} 40... hxg5 {[%clk 0:00:33.3]} 41. Kf3 {[%clk 0:00:08.4]} 0-1

[Event "Early-Titled-Tuesday-Blitz-January-23-2024"]
[Site "Chess.com"]
[Date "2024.01.23"]
[Round "11"]
[White "diamonds13"]
[Black "arnash_bauyrzhan"]
[Result "1-0"]
[WhiteElo "2339"]
[BlackElo "2206"]
[TimeControl "180+1"]
[EndTime "10:07:27 PST"]
[Termination "diamonds13 won on time"]

1. d4 {[%clk 0:02:54]} 1... d5 {[%clk 0:02:59.8]} 2. c4 {[%clk 0:02:54.6]} 2...
e6 {[%clk 0:02:59.7]} 3. Nc3 {[%clk 0:02:50.8]} 3... Be7 {[%clk 0:02:59.7]} 4.
cxd5 {[%clk 0:02:50.4]} 4... exd5 {[%clk 0:03:00.6]} 5. Nf3 {[%clk 0:02:49.9]}
5... c6 {[%clk 0:03:00.7]} 6. Qc2 {[%clk 0:02:48.1]} 6... g6 {[%clk 0:02:51.1]}
7. h4 {[%clk 0:02:47]} 7... Bf5 {[%clk 0:02:47.3]} 8. Qb3 {[%clk 0:02:47.3]}
8... Qb6 {[%clk 0:02:44.4]} 9. Qd1 {[%clk 0:02:33.3]} 9... Na6 {[%clk
0:02:42.2]} 10. a3 {[%clk 0:02:32.2]} 10... Qa5 {[%clk 0:02:30]} 11. Bd2 {[%clk
0:02:29.6]} 11... Qb6 {[%clk 0:02:20.7]} 12. b4 {[%clk 0:02:26.8]} 12... Nf6
{[%clk 0:02:17.3]} 13. Ne5 {[%clk 0:02:23.8]} 13... Qxd4 {[%clk 0:02:09.6]} 14.
Nf3 {[%clk 0:02:17.9]} 14... Qb6 {[%clk 0:02:02.9]} 15. Be3 {[%clk 0:02:13.5]}
15... Qc7 {[%clk 0:01:57.1]} 16. Bd4 {[%clk 0:02:14]} 16... O-O {[%clk 0:01:46]}
17. e3 {[%clk 0:02:13.3]} 17... c5 {[%clk 0:01:42.5]} 18. bxc5 {[%clk
0:02:09.5]} 18... Nxc5 {[%clk 0:01:41.5]} 19. Be2 {[%clk 0:02:02.5]} 19... Nce4
{[%clk 0:01:36.1]} 20. Rc1 {[%clk 0:01:57.4]} 20... Bxa3 {[%clk 0:01:29.9]} 21.
Rc2 {[%clk 0:01:53.8]} 21... Nxc3 {[%clk 0:01:25.5]} 22. Bxf6 {[%clk 0:01:46]}
22... Bxc2 {[%clk 0:01:10.9]} 23. Qxc2 {[%clk 0:01:44.3]} 23... Rac8 {[%clk
0:01:03.2]} 24. O-O {[%clk 0:01:35.4]} 24... Nxe2+ {[%clk 0:00:58.4]} 25. Qxe2
{[%clk 0:01:35]} 25... Qc2 {[%clk 0:00:53.2]} 26. Qb5 {[%clk 0:01:34.1]} 26...
Rc6 {[%clk 0:00:41.5]} 27. Bd4 {[%clk 0:01:20.1]} 27... Qe4 {[%clk 0:00:18.6]}
28. Qxb7 {[%clk 0:01:16.6]} 28... Rc4 {[%clk 0:00:18.1]} 29. Qxa7 {[%clk
0:01:11.6]} 29... Bb4 {[%clk 0:00:16.1]} 30. h5 {[%clk 0:01:00.2]} 30... Rxd4
{[%clk 0:00:13.9]} 31. Nxd4 {[%clk 0:00:59.8]} 31... Bc3 {[%clk 0:00:10]} 32.
Nc6 {[%clk 0:00:54.8]} 32... gxh5 {[%clk 0:00:07.9]} 33. Qc5 {[%clk 0:00:52.8]}
33... Bf6 {[%clk 0:00:06.7]} 34. Qd6 {[%clk 0:00:51.5]} 34... Kg7 {[%clk
0:00:06.3]} 35. Rd1 {[%clk 0:00:49.3]} 35... Rg8 {[%clk 0:00:05.4]} 36. Qxd5
{[%clk 0:00:47.4]} 36... Qxd5 {[%clk 0:00:04.3]} 37. Rxd5 {[%clk 0:00:47.5]}
37... Rc8 {[%clk 0:00:05]} 38. Nb4 {[%clk 0:00:43.1]} 38... h4 {[%clk
0:00:04.8]} 39. Nd3 {[%clk 0:00:40.6]} 39... Rc2 {[%clk 0:00:03.4]} 40. Kh2
{[%clk 0:00:37.7]} 1-0

[Event "Early-Titled-Tuesday-Blitz-January-23-2024"]
[Site "Chess.com"]
[Date "2024.01.23"]
[Round "11"]
[White "GatoRojo150"]
[Black "NM_Antelacus"]
[Result "1/2-1/2"]
[WhiteElo "2605"]
[BlackElo "2250"]
[TimeControl "180+1"]
[EndTime "10:07:28 PST"]
[Termination "Game drawn by repetition"]

1. e4 {[%clk 0:03:00.9]} 1... c5 {[%clk 0:02:59.8]} 2. Nf3 {[%clk 0:03:01]} 2...
Nc6 {[%clk 0:02:59.9]} 3. Nc3 {[%clk 0:03:01.5]} 3... g6 {[%clk 0:02:57.6]} 4.
Bc4 {[%clk 0:03:01.6]} 4... Bg7 {[%clk 0:02:57.1]} 5. O-O {[%clk 0:03:02.2]}
5... e6 {[%clk 0:02:57]} 6. d4 {[%clk 0:03:02.3]} 6... cxd4 {[%clk 0:02:56.7]}
7. Nb5 {[%clk 0:03:02.6]} 7... d6 {[%clk 0:02:54]} 8. Bg5 {[%clk 0:03:02.1]}
8... Nge7 {[%clk 0:02:52.6]} 9. Nfxd4 {[%clk 0:03:02.2]} 9... Nxd4 {[%clk
0:02:45.2]} 10. Nxd4 {[%clk 0:03:03.1]} 10... O-O {[%clk 0:02:43.4]} 11. c3
{[%clk 0:03:01.4]} 11... a6 {[%clk 0:02:38.4]} 12. Bb3 {[%clk 0:03:01.5]} 12...
Qc7 {[%clk 0:02:35.4]} 13. f4 {[%clk 0:02:56.7]} 13... b5 {[%clk 0:02:33.7]} 14.
Kh1 {[%clk 0:02:55.6]} 14... Nc6 {[%clk 0:02:31.3]} 15. f5 {[%clk 0:02:42.4]}
15... Nxd4 {[%clk 0:02:17.2]} 16. f6 {[%clk 0:02:42.5]} 16... Nxb3 {[%clk
0:02:09.5]} 17. fxg7 {[%clk 0:02:42.4]} 17... Re8 {[%clk 0:01:52]} 18. axb3
{[%clk 0:02:39.5]} 18... Bb7 {[%clk 0:01:48.1]} 19. Qf3 {[%clk 0:02:35.2]} 19...
f5 {[%clk 0:01:45.7]} 20. Bh6 {[%clk 0:02:12.3]} 20... Bxe4 {[%clk 0:01:42.4]}
21. Qg3 {[%clk 0:02:12]} 21... e5 {[%clk 0:01:37.7]} 22. Rae1 {[%clk 0:02:11.7]}
22... Bd5 {[%clk 0:01:31.3]} 23. h3 {[%clk 0:02:04.1]} 23... Be6 {[%clk
0:01:30]} 24. Kh2 {[%clk 0:02:02.3]} 24... Re7 {[%clk 0:01:29.6]} 25. Qh4 {[%clk
0:01:56.5]} 25... Rae8 {[%clk 0:01:26.9]} 26. Qf6 {[%clk 0:01:56.4]} 26... Rf7
{[%clk 0:01:25.5]} 27. Qg5 {[%clk 0:01:56.4]} 27... Qe7 {[%clk 0:01:21.6]} 28.
Qd2 {[%clk 0:01:52.9]} 28... Rxg7 {[%clk 0:01:15.3]} 29. Bxg7 {[%clk 0:01:51.2]}
29... Kxg7 {[%clk 0:01:15.7]} 30. b4 {[%clk 0:01:51.4]} 30... Rd8 {[%clk
0:01:13.6]} 31. Rf2 {[%clk 0:01:49.6]} 31... Qf6 {[%clk 0:01:11.2]} 32. Rfe2
{[%clk 0:01:44.7]} 32... e4 {[%clk 0:01:10.4]} 33. Rf2 {[%clk 0:01:39]} 33...
Qe5+ {[%clk 0:01:07.7]} 34. Kg1 {[%clk 0:01:38.7]} 34... Bc4 {[%clk 0:01:06.3]}
35. Qg5 {[%clk 0:01:38]} 35... Rd7 {[%clk 0:01:04.4]} 36. Qe3 {[%clk 0:01:23.6]}
36... Be6 {[%clk 0:00:58.7]} 37. Rd1 {[%clk 0:01:21.5]} 37... d5 {[%clk
0:00:56.3]} 38. h4 {[%clk 0:01:06]} 38... h6 {[%clk 0:00:56.2]} 39. g3 {[%clk
0:00:41.8]} 39... Rf7 {[%clk 0:00:52.3]} 40. Kh2 {[%clk 0:00:41.8]} 40... Qf6
{[%clk 0:00:48.2]} 41. Kg2 {[%clk 0:00:36.7]} 41... Qe5 {[%clk 0:00:42.7]} 42.
Rh1 {[%clk 0:00:31.4]} 42... Rd7 {[%clk 0:00:39.4]} 43. Qc5 {[%clk 0:00:30.4]}
43... Qc7 {[%clk 0:00:34]} 44. Qd4+ {[%clk 0:00:30]} 44... Kh7 {[%clk
0:00:32.6]} 45. Qe3 {[%clk 0:00:28]} 45... Qe5 {[%clk 0:00:31.8]} 46. Qc5 {[%clk
0:00:24.7]} 46... Qc7 {[%clk 0:00:29.2]} 47. Qe3 {[%clk 0:00:24.6]} 47... Qe5
{[%clk 0:00:28.8]} 48. Rd2 {[%clk 0:00:22.4]} 48... Rf7 {[%clk 0:00:27.5]} 49.
Rf2 {[%clk 0:00:21.1]} 49... Rd7 {[%clk 0:00:26.7]} 1/2-1/2

[Event "Early-Titled-Tuesday-Blitz-January-23-2024"]
[Site "Chess.com"]
[Date "2024.01.23"]
[Round "11"]
[White "LangesNasenhaar"]
[Black "Felix-Rose"]
[Result "0-1"]
[WhiteElo "2406"]
[BlackElo "2322"]
[TimeControl "180+1"]
[EndTime "10:07:28 PST"]
[Termination "Felix-Rose won by resignation"]

1. d4 {[%clk 0:03:00.9]} 1... d5 {[%clk 0:02:58.8]} 2. Nf3 {[%clk 0:02:59.8]}
2... Nf6 {[%clk 0:02:58.7]} 3. Bg5 {[%clk 0:02:59.8]} 3... Ne4 {[%clk
0:02:56.1]} 4. Bh4 {[%clk 0:02:58.1]} 4... h5 {[%clk 0:02:56]} 5. Nbd2 {[%clk
0:02:53.5]} 5... f6 {[%clk 0:02:56.1]} 6. Bg3 {[%clk 0:02:40]} 6... g5 {[%clk
0:02:48.4]} 7. Nxe4 {[%clk 0:02:26.5]} 7... dxe4 {[%clk 0:02:47.1]} 8. Nxg5
{[%clk 0:02:24.6]} 8... fxg5 {[%clk 0:02:27.2]} 9. Be5 {[%clk 0:02:24.6]} 9...
Rh7 {[%clk 0:02:25.5]} 10. h4 {[%clk 0:02:13.7]} 10... Nc6 {[%clk 0:02:10.7]}
11. Bg3 {[%clk 0:02:07.9]} 11... gxh4 {[%clk 0:02:04.5]} 12. Rxh4 {[%clk
0:02:05.1]} 12... Qxd4 {[%clk 0:02:01]} 13. Qc1 {[%clk 0:01:56.5]} 13... Bf5
{[%clk 0:01:49.4]} 14. e3 {[%clk 0:01:28.3]} 14... Qb4+ {[%clk 0:01:41.3]} 15.
c3 {[%clk 0:01:28.2]} 15... Qb6 {[%clk 0:01:40.9]} 16. Be2 {[%clk 0:01:21.3]}
16... Bg6 {[%clk 0:01:26.4]} 17. Qc2 {[%clk 0:01:03.1]} 17... O-O-O {[%clk
0:01:24.5]} 18. Bc4 {[%clk 0:01:03.8]} 18... Bg7 {[%clk 0:00:59.2]} 19. a4
{[%clk 0:00:53.3]} 19... Kb8 {[%clk 0:00:57]} 20. Be2 {[%clk 0:00:42.6]} 20...
Bf6 {[%clk 0:00:54]} 21. Rh3 {[%clk 0:00:41.6]} 21... a5 {[%clk 0:00:48.3]} 22.
Kf1 {[%clk 0:00:39.9]} 22... Ne5 {[%clk 0:00:48]} 23. b4 {[%clk 0:00:37.7]}
23... Nd3 {[%clk 0:00:43.9]} 24. bxa5 {[%clk 0:00:32.8]} 24... Qxa5 {[%clk
0:00:43.5]} 25. Rb1 {[%clk 0:00:32.2]} 25... Qxc3 {[%clk 0:00:41]} 26. Qa2
{[%clk 0:00:29]} 26... Nc1 {[%clk 0:00:28.4]} 27. Rxb7+ {[%clk 0:00:04.4]} 27...
Kxb7 {[%clk 0:00:27]} 28. Qb1+ {[%clk 0:00:04.8]} 28... Nb3 {[%clk 0:00:19.6]}
29. Kg1 {[%clk 0:00:05.4]} 29... Qc1+ {[%clk 0:00:19.1]} 30. Qxc1 {[%clk
0:00:06.1]} 30... Nxc1 {[%clk 0:00:20]} 31. Bb5 {[%clk 0:00:06.4]} 31... c6
{[%clk 0:00:19.4]} 32. Bf1 {[%clk 0:00:05.6]} 32... Rd1 {[%clk 0:00:19.5]} 33.
Bf4 {[%clk 0:00:04]} 33... Ne2+ {[%clk 0:00:18.6]} 0-1

[Event "Early-Titled-Tuesday-Blitz-January-23-2024"]
[Site "Chess.com"]
[Date "2024.01.23"]
[Round "11"]
[White "AvitalBor"]
[Black "jaskol95"]
[Result "1-0"]
[WhiteElo "2761"]
[BlackElo "2559"]
[TimeControl "180+1"]
[EndTime "10:07:29 PST"]
[Termination "AvitalBor won on time"]

1. e4 {[%clk 0:03:00.9]} 1... d5 {[%clk 0:02:59.4]} 2. exd5 {[%clk 0:03:00.7]}
2... Nf6 {[%clk 0:03:00.1]} 3. Nc3 {[%clk 0:02:59.4]} 3... Nxd5 {[%clk
0:03:00.1]} 4. Nf3 {[%clk 0:02:59.7]} 4... Nxc3 {[%clk 0:02:59]} 5. bxc3 {[%clk
0:03:00.6]} 5... g6 {[%clk 0:02:59.6]} 6. d4 {[%clk 0:02:58]} 6... Bg7 {[%clk
0:03:00.1]} 7. h4 {[%clk 0:02:58.2]} 7... h5 {[%clk 0:02:52.2]} 8. Bc4 {[%clk
0:02:56.3]} 8... Bg4 {[%clk 0:02:26]} 9. Qd3 {[%clk 0:02:51.9]} 9... Nd7 {[%clk
0:02:14.3]} 10. Ng5 {[%clk 0:02:37.1]} 10... e6 {[%clk 0:01:56.1]} 11. f3 {[%clk
0:02:22.1]} 11... Bf5 {[%clk 0:01:55.5]} 12. Qe2 {[%clk 0:02:22.3]} 12... Nb6
{[%clk 0:01:38.6]} 13. Bb3 {[%clk 0:02:14.4]} 13... Qd6 {[%clk 0:01:15.4]} 14.
Kf2 {[%clk 0:02:14.3]} 14... Nd5 {[%clk 0:01:08.4]} 15. Bd2 {[%clk 0:02:03]}
15... c5 {[%clk 0:00:59.7]} 16. g4 {[%clk 0:01:52.7]} 16... hxg4 {[%clk
0:00:59.6]} 17. fxg4 {[%clk 0:01:53.6]} 17... cxd4 {[%clk 0:00:22]} 18. gxf5
{[%clk 0:01:36.7]} 18... dxc3 {[%clk 0:00:22.2]} 19. fxe6 {[%clk 0:01:36.5]}
19... O-O {[%clk 0:00:15.2]} 20. exf7+ {[%clk 0:01:31.8]} 20... Kh8 {[%clk
0:00:15.5]} 21. h5 {[%clk 0:01:25.2]} 21... Bd4+ {[%clk 0:00:12.3]} 22. Kg2
{[%clk 0:01:20]} 22... cxd2 {[%clk 0:00:04.7]} 23. hxg6+ {[%clk 0:01:19.9]}
23... Kg7 {[%clk 0:00:05.4]} 24. Rh7+ {[%clk 0:01:03.9]} 24... Kxg6 {[%clk
0:00:05.9]} 25. Qh5+ {[%clk 0:01:00.4]} 25... Kf5 {[%clk 0:00:04.9]} 26. Ne4+
{[%clk 0:00:28.8]} 26... Kxe4 {[%clk 0:00:04.2]} 27. Qf3+ {[%clk 0:00:29]} 27...
Ke5 {[%clk 0:00:03.9]} 28. Rh5+ {[%clk 0:00:29.6]} 28... Ke6 {[%clk 0:00:04.1]}
29. Rxd5 {[%clk 0:00:30.2]} 29... Rg8+ {[%clk 0:00:03.4]} 30. fxg8=Q+ {[%clk
0:00:25.7]} 30... Rxg8+ {[%clk 0:00:03.1]} 31. Rg5+ {[%clk 0:00:18]} 31... Kd7
{[%clk 0:00:03.1]} 32. Qxb7+ {[%clk 0:00:11.4]} 32... Ke8 {[%clk 0:00:01.8]} 33.
Rxg8+ {[%clk 0:00:11.1]} 1-0

[Event "Early-Titled-Tuesday-Blitz-January-23-2024"]
[Site "Chess.com"]
[Date "2024.01.23"]
[Round "11"]
[White "Viktor_Poddubnyi"]
[Black "Jenia84"]
[Result "1-0"]
[WhiteElo "2254"]
[BlackElo "2299"]
[TimeControl "180+1"]
[EndTime "10:07:33 PST"]
[Termination "Viktor_Poddubnyi won by checkmate"]

1. e4 {[%clk 0:03:00.9]} 1... c5 {[%clk 0:02:59.2]} 2. Nf3 {[%clk 0:03:00.5]}
2... d6 {[%clk 0:02:58.3]} 3. d4 {[%clk 0:03:00.8]} 3... cxd4 {[%clk 0:02:57.9]}
4. Nxd4 {[%clk 0:03:01.7]} 4... Nf6 {[%clk 0:02:58.2]} 5. Nc3 {[%clk 0:03:02.1]}
5... a6 {[%clk 0:02:58.5]} 6. Be3 {[%clk 0:03:02.5]} 6... e5 {[%clk 0:02:51.5]}
7. Nb3 {[%clk 0:03:02.3]} 7... Be7 {[%clk 0:02:51.3]} 8. h3 {[%clk 0:03:01.9]}
8... Be6 {[%clk 0:02:50]} 9. Qf3 {[%clk 0:03:02.2]} 9... Nbd7 {[%clk 0:02:49.7]}
10. g4 {[%clk 0:03:01.6]} 10... h6 {[%clk 0:02:49]} 11. Bd3 {[%clk 0:02:55.4]}
11... b5 {[%clk 0:02:48.5]} 12. O-O-O {[%clk 0:02:54.6]} 12... Rc8 {[%clk
0:02:47.1]} 13. Nd5 {[%clk 0:02:49.2]} 13... Bxd5 {[%clk 0:02:43.6]} 14. exd5
{[%clk 0:02:50.1]} 14... Qc7 {[%clk 0:02:34.1]} 15. Kb1 {[%clk 0:02:45.9]} 15...
Nb6 {[%clk 0:02:24]} 16. Bf5 {[%clk 0:02:35.9]} 16... Rb8 {[%clk 0:02:10.6]} 17.
h4 {[%clk 0:02:18.7]} 17... g6 {[%clk 0:01:48.3]} 18. Bxb6 {[%clk 0:02:02.5]}
18... Qxb6 {[%clk 0:01:36.4]} 19. Bd3 {[%clk 0:01:41.1]} 19... a5 {[%clk
0:01:32.8]} 20. g5 {[%clk 0:01:36.7]} 20... Nd7 {[%clk 0:01:27.3]} 21. h5 {[%clk
0:01:28.1]} 21... gxh5 {[%clk 0:01:22.9]} 22. g6 {[%clk 0:01:27.8]} 22... fxg6
{[%clk 0:01:19.9]} 23. Bxg6+ {[%clk 0:01:26.8]} 23... Kd8 {[%clk 0:01:20.1]} 24.
Bf5 {[%clk 0:01:05]} 24... Rf8 {[%clk 0:01:14.9]} 25. Qxh5 {[%clk 0:01:02.8]}
25... a4 {[%clk 0:01:00.6]} 26. Nc1 {[%clk 0:01:02.5]} 26... Qxf2 {[%clk
0:00:52]} 27. Bxd7 {[%clk 0:01:01.7]} 27... Kxd7 {[%clk 0:00:51.3]} 28. Qxh6
{[%clk 0:01:02.1]} 28... Qf6 {[%clk 0:00:46.3]} 29. Qh3+ {[%clk 0:01:00.7]}
29... Qf5 {[%clk 0:00:46.4]} 30. Qe3 {[%clk 0:00:55.3]} 30... Rbc8 {[%clk
0:00:33.7]} 31. Nd3 {[%clk 0:00:52.9]} 31... Qg5 {[%clk 0:00:26.9]} 32. Qb6
{[%clk 0:00:46.4]} 32... Rc7 {[%clk 0:00:15.9]} 33. Qxb5+ {[%clk 0:00:44.7]}
33... Kd8 {[%clk 0:00:15.4]} 34. Nb4 {[%clk 0:00:43.4]} 34... Qg2 {[%clk
0:00:09.4]} 35. Nc6+ {[%clk 0:00:37.7]} 35... Ke8 {[%clk 0:00:09.7]} 36. Nxe5+
{[%clk 0:00:35.2]} 36... Kd8 {[%clk 0:00:09.6]} 37. Nc6+ {[%clk 0:00:34.5]}
37... Ke8 {[%clk 0:00:09.4]} 38. Rhe1 {[%clk 0:00:34.7]} 38... Rf7 {[%clk
0:00:09.2]} 39. Qb8+ {[%clk 0:00:26.3]} 39... Kd7 {[%clk 0:00:07.5]} 40. Rxe7+
{[%clk 0:00:26.6]} 40... Rxe7 {[%clk 0:00:07.3]} 41. Qd8# {[%clk 0:00:27.1]} 1-0